Cogmind - Beta 11.1 @@@ ROGUE MODE // 2022.11.18 @ 20:13:14 Player: Pitt Result: Destroyed by Y-45 Defender with Heavy Assault Rifle Performance ------------- Evolutions (2) 1000 Regions Visited (5) 1000 Robots Destroyed (23) 115 Value Destroyed (731) 731 Prototype IDs (0) 0 Alien Tech Used (0) 0 Bonus (200) 200 TOTAL SCORE: 3046 Bonus ------- Entered Garrisons 200 Cogmind --------- Core Integrity 0/550 Matter 300/300 Energy 100/100 System Corruption 0% Temperature Cool (0) Movement Core (200) Ox3 Location -8/Garrison Parts ------- > --- POWER (2) -------- (None) > --- PROPULSION (3) --- (None) > --- UTILITY (3) ------ Medium Storage Unit > --- WEAPON (3) ------- (None) > --- INVENTORY (10) --- Heat Sink Heat Sink Huge Storage Unit Visual Processing Unit Sensor Array Seismic Detector Transport Network Coupler Mining Laser Peak State ------------ > --- POWER ------------ Light Nuclear Core Light Nuclear Core > --- PROPULSION ------- Light Treads Light Treads Aluminum Leg > --- UTILITY ---------- Heat Sink Improved Heat Sink Medium Storage Unit > --- WEAPON ----------- Beam Cannon Beam Cannon High-powered Shotgun > --- INVENTORY -------- Heat Sink Heat Sink Huge Storage Unit Visual Processing Unit Sensor Array Seismic Detector Transport Network Coupler Minigun Mining Laser [Rating: 20] Favorites ----------- Power Ion Engine Engine Ion Engine Power Core Light Nuclear Core Propulsion Light Treads Treads Light Treads Leg Aluminum Leg Utility Heat Sink Device Heat Sink Storage Medium Storage Unit Weapon Beam Cannon Energy Gun Small Laser Energy Cannon Beam Cannon Ballistic Gun Assault Rifle Build | -11 -10 -9 -8 -8 -8 ------- Run | Scr Mat Mat Mat Sto Gar Slots Evolved 4 | . . 2 2 . . Power 1 | . . . 1 . . Propulsion 1 | . . . 1 . . Utility 1 | . . 1 . . . Weapon 1 | . . 1 . . . Parts Attached 27 | 7 7 5 4 . 4 Power 4 | 1 . . 2 . 1 Engine 1 | 1 . . . . . Core 3 | . . . 2 . 1 Reactor . | . . . . . . Propulsion 8 | 2 3 1 1 . 1 Treads 5 | . 3 1 1 . . Leg 3 | 2 . . . . 1 Wheel . | . . . . . . Hover . | . . . . . . Flight . | . . . . . . Utility 8 | 2 2 3 1 . . Device 4 | 1 1 1 1 . . Storage 4 | 1 1 2 . . . Processor . | . . . . . . Hackware . | . . . . . . Protection . | . . . . . . Artifact . | . . . . . . Weapon 7 | 2 2 1 . . 2 Energy Gun 1 | 1 . . . . . Energy Cannon 3 | . 2 1 . . . Ballistic Gun 3 | 1 . . . . 2 Ballistic Cannon . | . . . . . . Launcher . | . . . . . . Special Weapon . | . . . . . . Impact Weapon . | . . . . . . Slashing Weapon . | . . . . . . Piercing Weapon . | . . . . . . Special Melee Weapon . | . . . . . . Unidentified Prototypes . | . . . . . . Parts Lost 14 | . . . . . 14 Power 3 | . . . . . 3 Propulsion 4 | . . . . . 4 Utility 2 | . . . . . 2 Weapon 5 | . . . . . 5 Highest Loss Streak 11 | . . . . . 11 To Critical Strikes . | . . . . . . Average Slot Usage (%) 94 | . 99 100 96 100 79 Engine 7 | . 14 11 3 . . Core 5 | . . . 10 18 13 Treads 20 | . 15 22 27 27 16 Leg 3 | . 11 . . . 2 Device 17 | . 14 22 18 18 15 Storage 10 | . 14 11 9 9 9 Energy Cannon 23 | . 15 33 27 27 16 Ballistic Gun 3 | . 9 . . . 5 Naked Turns . | . . . . . . Heaviest Build 31 | 14 22 26 31 31 31 Greatest Support 60 | 20 40 40 60 60 60 Greatest Overweight (x) 4 | . 4 . . . 4 Average Overweight (x) . | . . . . . . Largest Inventory Capacity 25 | 8 10 25 10 10 10 Average Capacity 9 | 7 8 10 10 10 10 Most Carried 10 | 6 10 10 10 10 10 Average Carried 8 | 3 7 9 9 10 9 Final Capacity 10 | 8 10 10 10 10 10 Final Carried 10 | 6 10 10 10 10 8 Class Distribution -------------------- 37% | Gunner 36% | Mutant 25% | Scavenger-Gunner Dominant Class ---------------- Mutant | -10/Materials Gunner | -9/Materials Scavenger-Gunner | -8/Materials Scavenger-Gunner | -8/Storage Scavenger-Gunner | -8/Garrison Resources | -11 -10 -9 -8 -8 -8 ----------- Run | Scr Mat Mat Mat Sto Gar Matter Collected 500 | 178 170 60 30 . 62 Remotely . | . . . . . . Salvage Created 1048 | 29 147 336 313 . 223 Parts 58 | 7 12 16 12 . 11 Haulers Intercepted 1 | . 1 . . . . Recyclers Shooed . | . . . . . . Parts Field Recycled . | . . . . . . Retrieved Matter . | . . . . . . Parts Self-Destructed . | . . . . . . Prevented . | . . . . . . Kills | -11 -10 -9 -8 -8 -8 ------- Run | Scr Mat Mat Mat Sto Gar Combat Hostiles Destroyed 16 | . 2 4 5 . 5 Guns 3 | . . . . . 3 Cannons 13 | . 2 4 5 . 2 Classes Destroyed 8 | 1 3 3 1 . . Tunneler 2 | 2 . . . . . Hauler 1 | . 1 . . . . Recycler 3 | . . 2 1 . . Watcher 1 | . 1 . . . . Swarmer 1 | . . . 1 . . Grunt 13 | . 2 2 4 . 5 Duelist 1 | . . 1 . . . Sentry 1 | . . 1 . . . Best Kill Streak 5 | 1 1 5 5 . 5 Combat Bots Only 5 | . 1 3 4 . 5 Max Kills in Single Turn 1 | 1 1 1 1 . 1 Gunslinging . | . . . . . . Exploded . | . . . . . . Melee . | . . . . . . Uniques/NPCs Destroyed . | . . . . . . Combat | -11 -10 -9 -8 -8 -8 -------- Run | Scr Mat Mat Mat Sto Gar Damage Taken 2022 | . 54 203 180 . 1585 Core 578 | . 10 13 9 . 546 Absorbed by Shields . | . . . . . . Core Remaining (%) 97 | 100 96 96 . . . Volleys Fired 61 | 2 14 13 12 . 20 Largest 3 | 2 2 3 3 . 3 Hottest 180 | 60 120 180 180 . 180 Shots Fired 151 | 4 22 39 36 . 50 Gun 30 | 4 8 . . . 18 Cannon 121 | . 14 39 36 . 32 Launcher . | . . . . . . Special . | . . . . . . Kinetic 24 | 2 4 . . . 18 Thermal 127 | 2 18 39 36 . 32 Explosive . | . . . . . . Electromagnetic . | . . . . . . Robot Hit Streak 11 | 2 7 11 5 . 11 Robot Miss Streak 3 | . 3 3 3 . 3 Penetration Max . | . . . . . . Secondary Targets . | . . . . . . Shots Hit Robots 93 | 2 14 25 19 . 33 Core Hits 41 | 2 5 8 10 . 16 Critical Kills . | . . . . . . Critical Parts Destroyed . | . . . . . . Critical Strikes . | . . . . . . Melee Attacks . | . . . . . . Impact . | . . . . . . Slashing . | . . . . . . Piercing . | . . . . . . Sneak Attacks . | . . . . . . Combat Hostiles . | . . . . . . Follow-up Attacks . | . . . . . . Damage Inflicted 1753 | 22 209 456 423 . 643 Guns 356 | 22 68 . . . 266 Cannons 1382 | . 141 456 423 . 362 Explosions . | . . . . . . Melee . | . . . . . . Ramming 15 | . . . . . 15 Kinetic 300 | . 34 . . . 266 Thermal 1438 | 22 175 456 423 . 362 Explosive . | . . . . . . Electromagnetic . | . . . . . . Impact . | . . . . . . Slashing . | . . . . . . Piercing . | . . . . . . Highest Corruption . | . . . . . . Average Corruption . | . . . . . . Corruption Purged . | . . . . . . Corruption Blocked . | . . . . . . Overload Shots . | . . . . . . Overflow Damage 23 | . 10 13 . . . Projectiles 23 | . 10 13 . . . Explosions . | . . . . . . Melee . | . . . . . . Knockbacks . | . . . . . . Impact . | . . . . . . Kinetic . | . . . . . . Secondary . | . . . . . . Self-Inflicted Damage 5 | . . . . . 5 Shots . | . . . . . . Rammed 11 | . . . . . 11 Targets Rammed 11 | . . . . . 11 Kicked . | . . . . . . Crushed . | . . . . . . Highest Temperature 279 | . 264 214 269 . 279 Average Temperature 117 | . 91 84 142 . 142 Received Heat Transfer 630 | . 30 33 108 . 459 Effects 1 | . . . . . 1 Interference 1 | . . . . . 1 Siege Activations . | . . . . . . Robots Corrupted . | . . . . . . Combat Hostiles . | . . . . . . Parts Fried . | . . . . . . Impact Corruptions . | . . . . . . Robots Melted . | . . . . . . Combat Hostiles . | . . . . . . Parts Melted 5 | . 2 1 1 . 1 Heat Transferred 3048 | 50 371 962 888 . 777 Parts Sabotaged . | . . . . . . Parts Stolen . | . . . . . . Parts Stripped . | . . . . . . Power Chain Reactions . | . . . . . . Missiles Intercepted . | . . . . . . Alert | -11 -10 -9 -8 -8 -8 ------- Run | Scr Mat Mat Mat Sto Gar Peak Influence 229 | 10 100 188 229 33 194 Initial 79 | . 6 42 79 33 24 Average 86 | 3 49 102 153 33 102 Maximum Alert Level 1 | . . . 1 . . Low Security (%) 94 | 100 100 100 71 100 100 Level 1 5 | . . . 28 . . Level 2 . | . . . . . . Level 3 . | . . . . . . Level 4 . | . . . . . . Level 5 . | . . . . . . High Security . | . . . . . . Max Security . | . . . . . . Squads Dispatched 1 | . 1 . . . . Investigation . | . . . . . . Extermination . | . . . . . . Reinforcement 1 | . 1 . . . . Assault . | . . . . . . Garrison . | . . . . . . Intercept . | . . . . . . Searches Triggered . | . . . . . . Construction Impeded . | . . . . . . Haulers Reinforced . | . . . . . . Active Scanning Responses . | . . . . . . Cargo Convoy Interrupts . | . . . . . . Stealth | -11 -10 -9 -8 -8 -8 --------- Run | Scr Mat Mat Mat Sto Gar Distress Signals 1 | . 1 . . . . Communications Jammed . | . . . . . . Distress Signals . | . . . . . . Times Spotted 27 | . 6 4 8 . 9 Peak Tracking Total 5 | . 2 3 4 . 5 Tactical Retreats 1 | . . . 1 . . Traps | -11 -10 -9 -8 -8 -8 ------- Run | Scr Mat Mat Mat Sto Gar Traps Triggered . | . . . . . . Indirectly . | . . . . . . Trap Hack Attempts . | . . . . . . Triggered . | . . . . . . Disarmed . | . . . . . . Reprogrammed . | . . . . . . Reused . | . . . . . . Traps Extracted . | . . . . . . Installed . | . . . . . . Triggered . | . . . . . . Machines | -11 -10 -9 -8 -8 -8 ---------- Run | Scr Mat Mat Mat Sto Gar Machines Disabled 2 | . . 1 1 . . Max in Single Turn 1 | . . 1 1 . . Garrison Relay 1 | . . . . . 1 Machines Sabotaged . | . . . . . . Garrisons Compromised . | . . . . . . Overloaded Fab Kills . | . . . . . . Hacking | -11 -10 -9 -8 -8 -8 --------- Run | Scr Mat Mat Mat Sto Gar Machines Accessed 5 | . . 3 1 1 . Terminals 3 | . . 2 1 . . Fabricators . | . . . . . . Repair Stations . | . . . . . . Recycling Units 1 | . . 1 . . . Scanalyzers . | . . . . . . Garrison Access 1 | . . . . 1 . Total Hacks 11 | . . 8 2 1 . Successful 7 | . . 4 2 1 . Failed 4 | . . 4 . . . Catastrophic . | . . . . . . Database Lockouts . | . . . . . . Manual 9 | . . 8 1 . . Terminals 8 | . . 6 2 . . Fabricators . | . . . . . . Repair Stations . | . . . . . . Recycling Units 2 | . . 2 . . . Scanalyzers . | . . . . . . Garrison Access 1 | . . . . 1 . Terminal Hacks 3 | . . 1 2 . . Terminal Index 1 | . . 1 . . . Alert Level 1 | . . . 1 . . Unreport Threat 1 | . . . 1 . . Fabricator Hacks . | . . . . . . Repair Station Hacks . | . . . . . . Recycling Unit Hacks . | . . . . . . Scanalyzer . | . . . . . . Garrison Access Hacks 1 | . . . . 1 . Unlock Access 1 | . . . . 1 . Unauthorized Hacks 3 | . . 3 . . . Terminals 3 | . . 3 . . . Botnet 2 | . . 2 . . . Operators 1 | . . 1 . . . Fabricators . | . . . . . . Repair Stations . | . . . . . . Recycling Units . | . . . . . . Scanalyzers . | . . . . . . Garrison Access . | . . . . . . Data Cores Recovered . | . . . . . . Used . | . . . . . . Hacking Detections 3 | . . 2 1 . . Full Trace Events . | . . . . . . Feedback Events . | . . . . . . Feedback Blocked . | . . . . . . Robot Schematics Acquired . | . . . . . . Robots Built . | . . . . . . Authchips . | . . . . . . Time . | . . . . . . Total Robot Build Rating . | . . . . . . Part Schematics Acquired . | . . . . . . Parts Built . | . . . . . . Authchips . | . . . . . . Time . | . . . . . . Total Part Build Rating . | . . . . . . Parts Repaired . | . . . . . . Time . | . . . . . . Parts Recycled . | . . . . . . Recycled Matter . | . . . . . . Retrieved Matter . | . . . . . . Retrieved Components . | . . . . . . Parts Scanalyzed . | . . . . . . Part Schematics Acquired . | . . . . . . Parts Damaged . | . . . . . . Bothacking | -11 -10 -9 -8 -8 -8 ------------ Run | Scr Mat Mat Mat Sto Gar Used RIF Installer . | . . . . . . Robots Hacked . | . . . . . . Non-combat . | . . . . . . Combat . | . . . . . . Robot Hacks Applied . | . . . . . . Relay Couplers Released 5 | . . . . . 5 Machine Destruction 5 | . . . . . 5 Fabnet Peak Effective % . | . . . . . . Robots Rewired . | . . . . . . Allies Hacked . | . . . . . . Hacks Repelled . | . . . . . . Allies | -11 -10 -9 -8 -8 -8 -------- Run | Scr Mat Mat Mat Sto Gar Total Allies . | . . . . . . Largest Group . | . . . . . . Highest-Rated Group . | . . . . . . Highest-Rated Ally . | . . . . . . Total Orders . | . . . . . . Ally Attacks . | . . . . . . Total Damage . | . . . . . . Kills . | . . . . . . Allies Corrupted . | . . . . . . Allies Melted . | . . . . . . Intel | -11 -10 -9 -8 -8 -8 ------- Run | Scr Mat Mat Mat Sto Gar Robot Analysis Total . | . . . . . . Derelict Logs Recovered . | . . . . . . Drone Launches . | . . . . . . Drone Recoveries . | . . . . . . Exploration | -11 -10 -9 -8 -8 -8 ------------- Run | Scr Mat Mat Mat Sto Gar Turns Passed 1103 | 127 269 263 217 32 195 Spaces Moved 528 | 90 123 130 100 20 65 Core 13 | 9 1 . . . 3 Treads 414 | . 102 130 100 20 62 Legs 101 | 81 20 . . . . Wheels . | . . . . . . Hover . | . . . . . . Flight . | . . . . . . Fastest Speed 50 | 50 120 160 160 160 160 Average Speed 151 | 113 154 160 160 160 164 Slowest Speed 250 | 120 250 160 160 160 250 Overloaded Moves . | . . . . . . Propulsion Burnouts . | . . . . . . Robots Hopped . | . . . . . . Cave-ins Triggered . | . . . . . . Exploration Rate (%) 10 | 5 16 15 10 6 13 Regions Visited 5 Branch Regions 1 Pre-discovered Areas . | . . . . . . Known Exits Taken 1 | . . . . 1 . Unknown Exits Taken 4 | 1 1 1 1 . . Scrap Searched . | . . . . . . Spaces Dug . | . . . . . . Terrain Destroyed . | . . . . . . Melee . | . . . . . . Projectile . | . . . . . . AOE . | . . . . . . Terrain Rammed . | . . . . . . Walls Destroyed . | . . . . . . Machines Disabled . | . . . . . . Actions | -11 -10 -9 -8 -8 -8 --------- Run | Scr Mat Mat Mat Sto Gar Total 697 | 108 182 154 131 20 102 Wait 44 | 4 22 7 9 . 2 Move 524 | 89 122 129 99 20 65 Hop . | . . . . . . Pick Up 17 | 6 8 . 3 . . Fast Attach 15 | 7 4 . 2 . 2 Attach 5 | . . 2 1 . 2 Detach . | . . . . . . Swap 7 | . 3 3 1 . . Drop 13 | . 9 . 4 . . Fire 61 | 2 14 13 12 . 20 Melee . | . . . . . . Ram 11 | . . . . . 11 Kick . | . . . . . . Crush . | . . . . . . Escape Stasis . | . . . . . . Rewire . | . . . . . . Trap . | . . . . . . Miscellaneous . | . . . . . . Route ------- -11/Scrapyard -10/Materials -9/Materials -8/Materials -8/Storage -8/Garrison History --------- Turn | Location | Event 6 | -11/Scrapyard | Discovered new exit (range 16) 128 | -11/Scrapyard | Entered Materials 251 | -10/Materials | Discovered new exit (range 16) 310 | -10/Materials | Build established: Mutant 397 | -10/Materials | Entered another Materials area 397 | -9/Materials | Evolved 2 slots: Utility x1, Weapon x1 600 | -9/Materials | Discovered new exit (range 14) 659 | -9/Materials | Build established: Gunner 660 | -9/Materials | Entered another Materials area 660 | -8/Materials | Evolved 2 slots: Power x1, Propulsion x1 837 | -8/Materials | Discovered new exit (range 5) 877 | -8/Materials | Entered Storage 909 | -8/Storage | Identified exit to Garrison 909 | -8/Storage | Entered Garrison 938 | -8/Garrison | Triggered checkpoint 954 | -8/Garrison | Triggered checkpoint 996 | -8/Garrison | Lost 3 parts (1p1n1w) 1056 | -8/Garrison | Garrison Relay disabled 1087 | -8/Garrison | Core integrity fell below 50% 1095 | -8/Garrison | Core integrity fell below 20% 1104 | -8/Garrison | Destroyed by Y-45 Defender with Heavy Assault Rifle Last Messages --------------- 01053_ Y-45 Defender springs to life. 01053_ Lgt. Treads destroyed. 01054_ Y-45 Defender springs to life. 01056_ Garrison Relay disabled. 01056_ Relay Coupler [Demolisher] tumbles out of relay unit. 01056_ Relay Coupler [NC] tumbles out of relay unit. 01056_ Relay Coupler [Grunt] tumbles out of relay unit. 01056_ Relay Coupler [Swarmer] tumbles out of relay unit. 01056_ Relay Coupler [Grunt] tumbles out of relay unit. 01056_ Beam Cannon destroyed. 01060_ Critical hit (Burn: +37). 01061_ Lgt. Nuclear Core destroyed. 01064_ Lgt. Treads destroyed. 01069_ Hpw. Shotgun destroyed. 01070_ Imp. Heat Sink destroyed. 01079_ Aluminum Leg destroyed. 01081_ Minigun destroyed. 01082_ Slammed into L-31 Rogue. 01089_ Heat Sink destroyed. 01090_ Slammed into L-31 Rogue. Map ----- +----------------------------------------------------+ | ?????????????????????????????????????????????????? | | ?????????????????????????????????????????????????? | | ?????????????????????????????????????????????????? | | ?????????????????????????????????????????????????? | | ?????????????????????????????????????????????????? | | ?????????????????????????????????????????????????? | | ?????????????????????????????????????????????????? | | ?????????????????????????????????????????????????? | | ?????????????????????????????????????????????????? | | ?????????????????????????????????????????????????? | | ?????????????????????????????????????????????????? | | ???????????????????????????????????? #???????????? | | ?################################# #???????????? | | ?# #???????????? | | ?# % ^ #???????????? | | ?# !%* * ^^ #???????????? | | ?# ############# #####==###########???????????? | | ?# #???????????# #???#[%###???????????????????? | | ?#####???????????" #???# %[ #???????????????????? | | ?????????????????" #???+=[ #???????????????????? | | ?????????????????" #???# #???????????????????? | | ?????????????????# #???# ###???????????????????? | | ?????????????????# #???# #?????????????????????? | | ?????????????????# #???# #?????????????????????? | | ?????????????????# #???# l#?????????????????????? | | ?????????????????# #???#@ #######???????????????? | | ????????????????? #???# % #???????????????? | | ?????????????????# ????#l ###!!!#???????????????? | | ?????????????????? ????# %#?#####???????????????? | | ?????????????????? ????#Y #?????????????????????? | | ?????????????????? ????# Y#?????????????????????? | | ????????????????????????#% ###???????????????????? | | ????????????????????????# !# #???????????????????? | | ????????????????????????# !!!#???????????????????? | | ????????????????????????# !"#???????????????????? | | ????????????????????????# "#???????????????????? | | ????????????????????????# #"#???????????????????? | | ????????????????????????+ ###???????????????????? | | ???????????????????????## #?????????????????????? | | ????????????????????????####?????????????????????? | | ?????????????????????????????????????????????????? | | ?????????????????????????????????????????????????? | | ?????????????????????????????????????????????????? | | ?????????????????????????????????????????????????? | | ?????????????????????????????????????????????????? | | ?????????????????????????????????????????????????? | | ?????????????????????????????????????????????????? | | ?????????????????????????????????????????????????? | | | | | +----------------------------------------------------+ Best States ------------- Heat Dissipation 55 Energy Generation 23 Energy Capacity 310 Matter Stores 300 Matter Capacity 300 Sight Range 16 Terrain Scan Range 16 Terrain Scan Density 10 Evasion (%) 55 Recoil Reduction 3 Item Schematics ----------------- None Robot Schematics ------------------ None Fabricated ------------ Nothing Alien Tech Used ----------------- None Achievements -------------- None Challenges ------------ None Game ------ Seed MicrowarpReinforcedAirjet Manual? 0 Play Time 00:14:17 Cumulative 130.0 hours Start 2022.11.18 @ 20:01:07 End 2022.11.18 @ 20:13:14 Sessions 1 Manual Loads 0 Difficulty Rogue Special Mode None Game No. 207 Rogue 207 Adventurer 0 Explorer 0 Win Type - Total 0 Types 0/0/0/0/0/0/0/0/0 Lore% 49 Gallery% 53 Achievement% 37 Wizard Run 0 Options --------- ASCII 0 Keyboard 0 Movement Mouse Keybinds 0 Fullscreen 1 Font 12/Smallcaps Map View 83x54 Tactical HUD 1 Map Filters NONE Filters NONE Steam 1 RUN: c92914ed-b8cc-41e5-ab3a-c60190417995